[Event "Titled Tuesday Blitz March 22 Early 2022"]
[White "Samaganova, Aleksandra"]
[Black "Santos Flores, Alberto"]
[WhiteFideId "13800221"]
[BlackFideId "3601234"]
[WhiteElo "1859"]
[BlackElo "2235"]
[Result "1/2-1/2"]
[Round "04"]
[TimeControl "180+1"]
[Date "2022.03.22"]
[WhiteClock "0:00:04"]
[BlackClock "0:00:03"]

1. c4 {[%clk 0:02:59]}  c6 {[%clk 0:02:36]} 2. Nf3 {[%clk 0:02:57]}  d5 {[%clk 0:02:36]} 3. e3 {[%clk 0:02:50]}  Nf6 {[%clk 0:02:37]} 4. Nc3 {[%clk 0:02:47]}  a6 {[%clk 0:02:33]} 5. d4 {[%clk 0:02:42]}  Bf5 {[%clk 0:02:31]} 6. cxd5 {[%clk 0:02:20]}  cxd5 {[%clk 0:02:30]} 7. Bd3 {[%clk 0:02:21]}  Bxd3 {[%clk 0:02:29]} 8. Qxd3 {[%clk 0:02:20]}  e6 {[%clk 0:02:29]} 9. O-O {[%clk 0:02:20]}  Be7 {[%clk 0:02:28]} 10. e4 {[%clk 0:02:17]}  dxe4 {[%clk 0:02:27]} 11. Nxe4 {[%clk 0:02:18]}  O-O {[%clk 0:02:18]} 12. Rd1 {[%clk 0:02:16]}  Nc6 {[%clk 0:02:10]} 13. a3 {[%clk 0:02:13]}  Nd5 {[%clk 0:01:56]} 14. h3 {[%clk 0:02:12]}  Qb6 {[%clk 0:01:50]} 15. b4 {[%clk 0:02:08]}  Rac8 {[%clk 0:01:45]} 16. Rb1 {[%clk 0:02:04]}  Rfd8 {[%clk 0:01:38]} 17. Be3 {[%clk 0:01:47]}  Qb5 {[%clk 0:01:37]} 18. Qb3 {[%clk 0:01:42]}  a5 {[%clk 0:01:25]} 19. bxa5 {[%clk 0:01:38]}  Qxb3 {[%clk 0:01:25]} 20. Rxb3 {[%clk 0:01:38]}  Nxa5 {[%clk 0:01:22]} 21. Rbd3 {[%clk 0:01:28]}  Nc4 {[%clk 0:01:19]} 22. Rb1 {[%clk 0:01:15]}  b6 {[%clk 0:01:12]} 23. Bc1 {[%clk 0:01:08]}  Ra8 {[%clk 0:01:08]} 24. Ne5 {[%clk 0:01:00]}  Nxa3 {[%clk 0:00:48]} 25. Rbb3 {[%clk 0:00:44]}  Nc2 {[%clk 0:00:47]} 26. Bb2 {[%clk 0:00:39]}  Rdc8 {[%clk 0:00:41]} 27. Nd7 {[%clk 0:00:33]}  Rc6 {[%clk 0:00:30]} 28. Rg3 {[%clk 0:00:25]}  Ra7 {[%clk 0:00:21]} 29. Ne5 {[%clk 0:00:24]}  Rc8 {[%clk 0:00:20]} 30. Rgf3 {[%clk 0:00:16]}  f6 {[%clk 0:00:15]} 31. Nd3 {[%clk 0:00:16]}  Rac7 {[%clk 0:00:13]} 32. Nf4 {[%clk 0:00:16]}  Nxf4 {[%clk 0:00:12]} 33. Rxf4 {[%clk 0:00:16]}  Nb4 {[%clk 0:00:11]} 34. Ba3 {[%clk 0:00:15]}  Nd5 {[%clk 0:00:10]} 35. Rff3 {[%clk 0:00:15]}  Bxa3 {[%clk 0:00:08]} 36. Rxa3 {[%clk 0:00:16]}  Kf7 {[%clk 0:00:08]} 37. Nd6+ {[%clk 0:00:15]}  Ke7 {[%clk 0:00:07]} 38. Nxc8+ {[%clk 0:00:16]}  Rxc8 {[%clk 0:00:07]} 39. Ra7+ {[%clk 0:00:14]}  Rc7 {[%clk 0:00:08]} 40. Rfa3 {[%clk 0:00:13]}  Kd6 {[%clk 0:00:07]} 41. Rxc7 {[%clk 0:00:09]}  Nxc7 {[%clk 0:00:08]} 42. Kf1 {[%clk 0:00:07]}  Nb5 {[%clk 0:00:07]} 43. Rg3 {[%clk 0:00:06]}  g5 {[%clk 0:00:05]} 44. h4 {[%clk 0:00:04]}  h6 {[%clk 0:00:04]} 45. hxg5 {[%clk 0:00:04]}  hxg5 {[%clk 0:00:05]} 46. Rg4 {[%clk 0:00:05]}  Kd5 {[%clk 0:00:04]} 47. Ke2 {[%clk 0:00:05]}  Nxd4+ {[%clk 0:00:04]} 48. Kd3 {[%clk 0:00:05]}  Nc6 {[%clk 0:00:04]} 49. Kc3 {[%clk 0:00:05]}  b5 {[%clk 0:00:03]} 50. Rg3 {[%clk 0:00:04]}  b4+ {[%clk 0:00:04]} 51. Kb2 {[%clk 0:00:03]}  Ke4 {[%clk 0:00:03]} 52. Re3+ {[%clk 0:00:02]}  Kf5 {[%clk 0:00:03]} 53. Re1 {[%clk 0:00:02]}  e5 {[%clk 0:00:03]} 54. Rh1 {[%clk 0:00:02]}  Nd4 {[%clk 0:00:03]} 55. Rh8 {[%clk 0:00:03]}  b3 {[%clk 0:00:02]} 56. Rd8 {[%clk 0:00:03]}  g4 {[%clk 0:00:02]} 57. Rf8 {[%clk 0:00:03]}  Kg5 {[%clk 0:00:02]} 58. Rg8+ {[%clk 0:00:03]}  Kf5 {[%clk 0:00:01]} 59. Rf8 {[%clk 0:00:04]}  Kg5 {[%clk 0:00:02]} 60. Rg8+ {[%clk 0:00:04]}  Kf5 {[%clk 0:00:03]} 61. Rf8 {[%clk 0:00:04]} 1/2-1/2


[Site "https://www.chess.com"]

[Event "Titled Tuesday Blitz March 22 Early 2022"]
[White "Sanal, Vahap"]
[Black "Gubanov, Oleg"]
[WhiteFideId "6300545"]
[BlackFideId "14115115"]
[WhiteElo "2603"]
[BlackElo "2080"]
[Result "1-0"]
[Round "04"]
[TimeControl "180+1"]
[Date "2022.03.22"]
[WhiteClock "0:00:55"]
[BlackClock "0:00:01"]

1. e4 {[%clk 0:03:00]}  Nf6 {[%clk 0:02:59]} 2. e5 {[%clk 0:03:00]}  Nd5 {[%clk 0:02:59]} 3. d4 {[%clk 0:03:01]}  d6 {[%clk 0:03:00]} 4. c4 {[%clk 0:03:01]}  Nb6 {[%clk 0:03:00]} 5. exd6 {[%clk 0:03:01]}  cxd6 {[%clk 0:03:00]} 6. Nc3 {[%clk 0:03:01]}  g6 {[%clk 0:03:01]} 7. Be3 {[%clk 0:03:02]}  Bg7 {[%clk 0:03:01]} 8. Rc1 {[%clk 0:03:03]}  O-O {[%clk 0:03:01]} 9. b3 {[%clk 0:03:03]}  e5 {[%clk 0:03:02]} 10. dxe5 {[%clk 0:03:03]}  dxe5 {[%clk 0:03:03]} 11. Qxd8 {[%clk 0:03:02]}  Rxd8 {[%clk 0:03:04]} 12. c5 {[%clk 0:02:55]}  N6d7 {[%clk 0:03:04]} 13. Bc4 {[%clk 0:02:52]}  Nc6 {[%clk 0:03:04]} 14. Nge2 {[%clk 0:02:49]}  Na5 {[%clk 0:03:04]} 15. Nd5 {[%clk 0:02:43]}  Nxc4 {[%clk 0:02:54]} 16. Rxc4 {[%clk 0:02:42]}  h6 {[%clk 0:02:03]} 17. O-O {[%clk 0:02:40]}  Nf8 {[%clk 0:02:00]} 18. Nc7 {[%clk 0:02:38]}  Rb8 {[%clk 0:01:58]} 19. Nc3 {[%clk 0:02:38]}  Ne6 {[%clk 0:01:53]} 20. N7b5 {[%clk 0:02:33]}  Nd4 {[%clk 0:01:34]} 21. Nd6 {[%clk 0:02:26]}  Be6 {[%clk 0:01:31]} 22. Ra4 {[%clk 0:02:27]}  b6 {[%clk 0:01:24]} 23. Rxa7 {[%clk 0:02:17]}  bxc5 {[%clk 0:01:24]} 24. Nde4 {[%clk 0:02:18]}  c4 {[%clk 0:01:12]} 25. Nc5 {[%clk 0:02:01]}  cxb3 {[%clk 0:01:11]} 26. axb3 {[%clk 0:02:01]}  Bxb3 {[%clk 0:01:06]} 27. Nxb3 {[%clk 0:01:57]}  Rxb3 {[%clk 0:01:02]} 28. Ne4 {[%clk 0:01:58]}  f5 {[%clk 0:00:59]} 29. Nc5 {[%clk 0:01:57]}  Rb6 {[%clk 0:00:47]} 30. h4 {[%clk 0:01:49]}  f4 {[%clk 0:00:45]} 31. Bxd4 {[%clk 0:01:49]}  exd4 {[%clk 0:00:45]} 32. Rd1 {[%clk 0:01:45]}  f3 {[%clk 0:00:41]} 33. gxf3 {[%clk 0:01:43]}  Rd5 {[%clk 0:00:37]} 34. Ne4 {[%clk 0:01:32]}  d3 {[%clk 0:00:33]} 35. Kg2 {[%clk 0:01:31]}  Rb2 {[%clk 0:00:31]} 36. Rc1 {[%clk 0:01:30]}  Rd8 {[%clk 0:00:14]} 37. Rcc7 {[%clk 0:01:30]}  Bd4 {[%clk 0:00:14]} 38. Rd7 {[%clk 0:01:19]}  Rxd7 {[%clk 0:00:10]} 39. Rxd7 {[%clk 0:01:20]}  Rb4 {[%clk 0:00:10]} 40. f4 {[%clk 0:01:20]}  Kf8 {[%clk 0:00:10]} 41. Kf3 {[%clk 0:01:20]}  Ke8 {[%clk 0:00:08]} 42. Rd6 {[%clk 0:01:20]}  Kf7 {[%clk 0:00:08]} 43. Nd2 {[%clk 0:01:16]}  Ke7 {[%clk 0:00:06]} 44. Rxg6 {[%clk 0:01:13]}  Rb2 {[%clk 0:00:06]} 45. Ne4 {[%clk 0:01:14]}  d2 {[%clk 0:00:04]} 46. Rg1 {[%clk 0:01:14]}  Rb3+ {[%clk 0:00:03]} 47. Ke2 {[%clk 0:01:14]}  Rh3 {[%clk 0:00:03]} 48. Ng3 {[%clk 0:01:02]}  Kf6 {[%clk 0:00:02]} 49. Rd1 {[%clk 0:00:55]}  Rxh4 {[%clk 0:00:02]} 50. Kf3 {[%clk 0:00:56]}  Bc5 {[%clk 0:00:01]} 51. Ne4+ {[%clk 0:00:55]} 1-0


[Site "https://www.chess.com"]

[Event "Titled Tuesday Blitz March 22 Early 2022"]
[White "Schrik, Rachid"]
[Black "Bethke, Richard"]
[WhiteFideId "1009818"]
[BlackFideId "12959243"]
[WhiteElo "2070"]
[BlackElo "2528"]
[Result "0-1"]
[Round "04"]
[TimeControl "180+1"]
[Date "2022.03.22"]
[WhiteClock "0:00:41"]
[BlackClock "0:01:02"]

1. d4 {[%clk 0:02:59]}  Nf6 {[%clk 0:02:59]} 2. c4 {[%clk 0:03:00]}  e6 {[%clk 0:02:20]} 3. Nc3 {[%clk 0:02:58]}  d5 {[%clk 0:02:21]} 4. cxd5 {[%clk 0:02:58]}  exd5 {[%clk 0:02:22]} 5. Bg5 {[%clk 0:02:57]}  Be7 {[%clk 0:02:22]} 6. Qc2 {[%clk 0:02:57]}  c6 {[%clk 0:02:22]} 7. e3 {[%clk 0:02:57]}  Nbd7 {[%clk 0:02:21]} 8. Bd3 {[%clk 0:02:56]}  h6 {[%clk 0:02:21]} 9. Bh4 {[%clk 0:02:56]}  Nh5 {[%clk 0:02:21]} 10. Bxe7 {[%clk 0:02:55]}  Qxe7 {[%clk 0:02:21]} 11. Nf3 {[%clk 0:02:55]}  Nf4 {[%clk 0:02:21]} 12. Bf1 {[%clk 0:02:55]}  Ne6 {[%clk 0:02:20]} 13. O-O-O {[%clk 0:02:55]}  Nb6 {[%clk 0:02:19]} 14. Kb1 {[%clk 0:02:51]}  Bd7 {[%clk 0:02:18]} 15. Ne5 {[%clk 0:02:49]}  O-O-O {[%clk 0:02:18]} 16. Qb3 {[%clk 0:02:42]}  Kb8 {[%clk 0:02:17]} 17. a4 {[%clk 0:02:40]}  Rhe8 {[%clk 0:01:48]} 18. a5 {[%clk 0:02:34]}  Nc8 {[%clk 0:01:48]} 19. Ba6 {[%clk 0:02:23]}  b5 {[%clk 0:01:23]} 20. Rc1 {[%clk 0:01:27]}  f6 {[%clk 0:01:10]} 21. Nd3 {[%clk 0:00:54]}  Nd6 {[%clk 0:01:05]} 22. Nc5 {[%clk 0:00:47]}  Nxc5 {[%clk 0:01:05]} 23. dxc5 {[%clk 0:00:47]}  Ne4 {[%clk 0:01:03]} 24. Nxb5 {[%clk 0:00:41]}  Nd2+ {[%clk 0:01:02]} 0-1


[Site "https://www.chess.com"]

[Event "Titled Tuesday Blitz March 22 Early 2022"]
[White "Selbes, Tarik"]
[Black "Daneshvar, Bardiya"]
[WhiteFideId "6302513"]
[BlackFideId "12576468"]
[WhiteElo "2290"]
[BlackElo "2295"]
[Result "0-1"]
[Round "04"]
[TimeControl "180+1"]
[Date "2022.03.22"]
[WhiteClock "0:02:10"]
[BlackClock "0:02:24"]

1. Nf3 {[%clk 0:03:00]}  g6 {[%clk 0:02:55]} 2. g3 {[%clk 0:03:01]}  Bg7 {[%clk 0:02:55]} 3. Bg2 {[%clk 0:03:01]}  e5 {[%clk 0:02:55]} 4. d3 {[%clk 0:03:00]}  d5 {[%clk 0:02:55]} 5. O-O {[%clk 0:03:00]}  Ne7 {[%clk 0:02:56]} 6. Nbd2 {[%clk 0:03:00]}  O-O {[%clk 0:02:56]} 7. Qe1 {[%clk 0:03:00]}  Nbc6 {[%clk 0:02:56]} 8. e4 {[%clk 0:03:00]}  h6 {[%clk 0:02:48]} 9. c3 {[%clk 0:02:59]}  f5 {[%clk 0:02:42]} 10. Qe2 {[%clk 0:02:48]}  dxe4 {[%clk 0:02:37]} 11. dxe4 {[%clk 0:02:48]}  f4 {[%clk 0:02:38]} 12. gxf4 {[%clk 0:02:40]}  exf4 {[%clk 0:02:34]} 13. e5 {[%clk 0:02:38]}  g5 {[%clk 0:02:30]} 14. Qc4+ {[%clk 0:02:28]}  Kh8 {[%clk 0:02:29]} 15. Ne4 {[%clk 0:02:18]}  g4 {[%clk 0:02:26]} 16. Nh4 {[%clk 0:02:17]}  Nxe5 {[%clk 0:02:26]} 17. Qb3 {[%clk 0:02:14]}  f3 {[%clk 0:02:26]} 18. Bh1 {[%clk 0:02:10]}  N7c6 {[%clk 0:02:24]} 0-1


[Site "https://www.chess.com"]

[Event "Titled Tuesday Blitz March 22 Early 2022"]
[White "Shandrygin, Nikita"]
[Black "Vakhlamov, Igor L."]
[WhiteFideId "24198668"]
[BlackFideId "24126748"]
[WhiteElo "2324"]
[BlackElo "2401"]
[Result "1/2-1/2"]
[Round "04"]
[TimeControl "180+1"]
[Date "2022.03.22"]
[WhiteClock "0:00:15"]
[BlackClock "0:00:16"]

1. Nf3 {[%clk 0:02:37]}  Nf6 {[%clk 0:02:59]} 2. g3 {[%clk 0:02:38]}  g6 {[%clk 0:02:59]} 3. Bg2 {[%clk 0:02:39]}  Bg7 {[%clk 0:02:59]} 4. O-O {[%clk 0:02:40]}  O-O {[%clk 0:03:00]} 5. d4 {[%clk 0:02:40]}  c5 {[%clk 0:03:01]} 6. b3 {[%clk 0:02:41]}  cxd4 {[%clk 0:03:01]} 7. Bb2 {[%clk 0:02:42]}  Nc6 {[%clk 0:02:58]} 8. Nxd4 {[%clk 0:02:42]}  Qa5 {[%clk 0:02:59]} 9. c4 {[%clk 0:02:39]}  Qh5 {[%clk 0:02:59]} 10. e3 {[%clk 0:02:40]}  Nxd4 {[%clk 0:02:32]} 11. Bxd4 {[%clk 0:02:38]}  d6 {[%clk 0:01:50]} 12. Qxh5 {[%clk 0:02:37]}  Nxh5 {[%clk 0:01:50]} 13. Bxg7 {[%clk 0:02:32]}  Kxg7 {[%clk 0:01:51]} 14. Nc3 {[%clk 0:02:32]}  Nf6 {[%clk 0:01:50]} 15. Rac1 {[%clk 0:02:28]}  Rb8 {[%clk 0:01:50]} 16. Nb5 {[%clk 0:02:22]}  a6 {[%clk 0:01:47]} 17. Nd4 {[%clk 0:02:23]}  Bd7 {[%clk 0:01:37]} 18. c5 {[%clk 0:02:22]}  d5 {[%clk 0:01:33]} 19. c6 {[%clk 0:02:19]}  Bxc6 {[%clk 0:01:32]} 20. Nxc6 {[%clk 0:02:20]}  bxc6 {[%clk 0:01:33]} 21. Rxc6 {[%clk 0:02:21]}  a5 {[%clk 0:01:26]} 22. Ra6 {[%clk 0:02:19]}  Ra8 {[%clk 0:01:22]} 23. Rxa8 {[%clk 0:02:20]}  Rxa8 {[%clk 0:01:23]} 24. Rc1 {[%clk 0:02:20]}  a4 {[%clk 0:01:21]} 25. b4 {[%clk 0:02:18]}  a3 {[%clk 0:01:22]} 26. Rc5 {[%clk 0:02:17]}  e6 {[%clk 0:01:18]} 27. Rb5 {[%clk 0:02:14]}  Ne8 {[%clk 0:01:09]} 28. e4 {[%clk 0:01:45]}  Nd6 {[%clk 0:01:08]} 29. Ra5 {[%clk 0:01:45]}  Rb8 {[%clk 0:00:59]} 30. exd5 {[%clk 0:01:37]}  Rxb4 {[%clk 0:00:58]} 31. dxe6 {[%clk 0:01:06]}  Rb1+ {[%clk 0:00:57]} 32. Bf1 {[%clk 0:01:07]}  fxe6 {[%clk 0:00:58]} 33. Rxa3 {[%clk 0:01:05]}  Ra1 {[%clk 0:00:52]} 34. Kg2 {[%clk 0:01:01]}  Ne4 {[%clk 0:00:29]} 35. Re3 {[%clk 0:00:56]}  Nc5 {[%clk 0:00:29]} 36. Bc4 {[%clk 0:00:57]}  Kf6 {[%clk 0:00:29]} 37. Kf3 {[%clk 0:00:32]}  h6 {[%clk 0:00:27]} 38. h4 {[%clk 0:00:32]}  g5 {[%clk 0:00:27]} 39. hxg5+ {[%clk 0:00:31]}  hxg5 {[%clk 0:00:28]} 40. Ra3 {[%clk 0:00:16]}  Ke5 {[%clk 0:00:25]} 41. Be2 {[%clk 0:00:16]}  Kf6 {[%clk 0:00:18]} 42. Ra5 {[%clk 0:00:15]}  Nd7 {[%clk 0:00:18]} 43. a4 {[%clk 0:00:14]}  Ne5+ {[%clk 0:00:17]} 44. Ke3 {[%clk 0:00:13]}  Ra3+ {[%clk 0:00:17]} 45. Kd4 {[%clk 0:00:13]}  Ra2 {[%clk 0:00:15]} 46. Ke3 {[%clk 0:00:13]}  Ra3+ {[%clk 0:00:15]} 47. Kd2 {[%clk 0:00:13]}  Ra2+ {[%clk 0:00:15]} 48. Ke1 {[%clk 0:00:14]}  Ra1+ {[%clk 0:00:15]} 49. Kd2 {[%clk 0:00:14]}  Ra2+ {[%clk 0:00:15]} 50. Ke3 {[%clk 0:00:15]}  Ra3+ {[%clk 0:00:16]} 1/2-1/2


[Site "https://www.chess.com"]

[Event "Titled Tuesday Blitz March 22 Early 2022"]
[White "Shtyka, Sergey"]
[Black "Garriga Cazorla, Pere"]
[WhiteFideId "4138465"]
[BlackFideId "32011601"]
[WhiteElo "2014"]
[BlackElo "2458"]
[Result "1-0"]
[Round "04"]
[TimeControl "180+1"]
[Date "2022.03.22"]
[WhiteClock "0:00:08"]
[BlackClock "0:00:20"]

1. e4 {[%clk 0:02:57]}  c5 {[%clk 0:02:59]} 2. Nf3 {[%clk 0:02:57]}  d6 {[%clk 0:02:56]} 3. d4 {[%clk 0:02:56]}  cxd4 {[%clk 0:02:57]} 4. Nxd4 {[%clk 0:02:57]}  Nf6 {[%clk 0:02:58]} 5. Nc3 {[%clk 0:02:57]}  a6 {[%clk 0:02:59]} 6. Bc4 {[%clk 0:02:57]}  e6 {[%clk 0:02:59]} 7. O-O {[%clk 0:02:57]}  b5 {[%clk 0:02:56]} 8. Bd3 {[%clk 0:02:57]}  Qc7 {[%clk 0:02:52]} 9. a3 {[%clk 0:02:56]}  Nbd7 {[%clk 0:02:52]} 10. Be3 {[%clk 0:02:55]}  Be7 {[%clk 0:02:51]} 11. f4 {[%clk 0:02:55]}  Bb7 {[%clk 0:02:50]} 12. Qf3 {[%clk 0:02:55]}  O-O {[%clk 0:02:50]} 13. Rae1 {[%clk 0:02:55]}  Rfe8 {[%clk 0:02:50]} 14. Kh1 {[%clk 0:02:54]}  Bf8 {[%clk 0:02:50]} 15. Bf2 {[%clk 0:02:52]}  g6 {[%clk 0:02:37]} 16. Qh3 {[%clk 0:02:45]}  Bg7 {[%clk 0:02:34]} 17. f5 {[%clk 0:02:37]}  exf5 {[%clk 0:02:25]} 18. exf5 {[%clk 0:02:36]}  Nc5 {[%clk 0:02:26]} 19. fxg6 {[%clk 0:02:29]}  hxg6 {[%clk 0:02:26]} 20. Rxe8+ {[%clk 0:02:07]}  Rxe8 {[%clk 0:02:25]} 21. Bh4 {[%clk 0:02:02]}  Nd5 {[%clk 0:02:04]} 22. Nxd5 {[%clk 0:01:48]}  Bxd5 {[%clk 0:02:05]} 23. Bf6 {[%clk 0:01:25]}  Nxd3 {[%clk 0:01:55]} 24. Qxd3 {[%clk 0:01:24]}  Bc4 {[%clk 0:01:52]} 25. Qc3 {[%clk 0:01:21]}  Qc5 {[%clk 0:01:07]} 26. Rf4 {[%clk 0:00:48]}  Bd5 {[%clk 0:00:41]} 27. Qd2 {[%clk 0:00:28]}  Bxf6 {[%clk 0:00:24]} 28. Rxf6 {[%clk 0:00:28]}  Bb7 {[%clk 0:00:25]} 29. h3 {[%clk 0:00:16]}  Qh5 {[%clk 0:00:20]} 30. Kg1 {[%clk 0:00:13]}  Qe5 {[%clk 0:00:18]} 31. Qf2 {[%clk 0:00:11]}  Re7 {[%clk 0:00:17]} 32. Rf4 {[%clk 0:00:10]}  Kg7 {[%clk 0:00:17]} 33. c3 {[%clk 0:00:09]}  Be4 {[%clk 0:00:17]} 34. Rg4 {[%clk 0:00:08]}  a5 {[%clk 0:00:16]} 35. Rf4 {[%clk 0:00:07]}  d5 {[%clk 0:00:15]} 36. Rg4 {[%clk 0:00:07]}  b4 {[%clk 0:00:16]} 37. axb4 {[%clk 0:00:07]}  axb4 {[%clk 0:00:17]} 38. Rf4 {[%clk 0:00:07]}  bxc3 {[%clk 0:00:16]} 39. bxc3 {[%clk 0:00:08]}  Rc7 {[%clk 0:00:16]} 40. Qe3 {[%clk 0:00:05]}  Qd6 {[%clk 0:00:16]} 41. Rg4 {[%clk 0:00:05]}  Qb6 {[%clk 0:00:15]} 42. Nf5+ {[%clk 0:00:04]}  Bxf5 {[%clk 0:00:13]} 43. Qxb6 {[%clk 0:00:05]}  Re7 {[%clk 0:00:13]} 44. Rg3 {[%clk 0:00:05]}  Re1+ {[%clk 0:00:13]} 45. Kh2 {[%clk 0:00:04]}  Re4 {[%clk 0:00:13]} 46. Qc5 {[%clk 0:00:04]}  Be6 {[%clk 0:00:13]} 47. Qd6 {[%clk 0:00:04]}  Kf6 {[%clk 0:00:13]} 48. Qd8+ {[%clk 0:00:04]}  Kg7 {[%clk 0:00:14]} 49. Qg5 {[%clk 0:00:05]}  Rc4 {[%clk 0:00:14]} 50. Qd2 {[%clk 0:00:05]}  Re4 {[%clk 0:00:14]} 51. Re3 {[%clk 0:00:05]}  Rc4 {[%clk 0:00:14]} 52. Rd3 {[%clk 0:00:06]}  Kf6 {[%clk 0:00:15]} 53. Rd4 {[%clk 0:00:06]}  Rc5 {[%clk 0:00:14]} 54. Qf4+ {[%clk 0:00:07]}  Ke7 {[%clk 0:00:15]} 55. Qe5 {[%clk 0:00:07]}  Kd7 {[%clk 0:00:15]} 56. Qf6 {[%clk 0:00:07]}  Kc6 {[%clk 0:00:15]} 57. Qe7 {[%clk 0:00:06]}  Rxc3 {[%clk 0:00:14]} 58. Qb4 {[%clk 0:00:06]}  Rc2 {[%clk 0:00:13]} 59. Rd2 {[%clk 0:00:05]}  Rc4 {[%clk 0:00:13]} 60. Qb2 {[%clk 0:00:04]}  Kd6 {[%clk 0:00:14]} 61. Rc2 {[%clk 0:00:04]}  Re4 {[%clk 0:00:14]} 62. Qb6+ {[%clk 0:00:04]}  Ke5 {[%clk 0:00:15]} 63. Qc7+ {[%clk 0:00:05]}  Kd4 {[%clk 0:00:14]} 64. Rd2+ {[%clk 0:00:05]}  Ke3 {[%clk 0:00:14]} 65. Qc3+ {[%clk 0:00:05]}  Kf4 {[%clk 0:00:15]} 66. Rf2+ {[%clk 0:00:05]}  Kg5 {[%clk 0:00:15]} 67. Qf6+ {[%clk 0:00:05]}  Kh6 {[%clk 0:00:16]} 68. Rf4 {[%clk 0:00:05]}  Rxf4 {[%clk 0:00:16]} 69. Qxf4+ {[%clk 0:00:05]}  Kg7 {[%clk 0:00:17]} 70. Qe5+ {[%clk 0:00:06]}  Kf8 {[%clk 0:00:18]} 71. Qd4 {[%clk 0:00:06]}  Ke7 {[%clk 0:00:18]} 72. g4 {[%clk 0:00:07]}  Kd6 {[%clk 0:00:19]} 73. g5 {[%clk 0:00:07]}  Bf5 {[%clk 0:00:19]} 74. h4 {[%clk 0:00:07]}  Ke6 {[%clk 0:00:19]} 75. Kg3 {[%clk 0:00:08]}  Be4 {[%clk 0:00:20]} 76. Kf4 {[%clk 0:00:08]}  Kd6 {[%clk 0:00:21]} 77. Qb6+ {[%clk 0:00:08]}  Kd7 {[%clk 0:00:20]} 78. Ke5 {[%clk 0:00:08]} 1-0


[Site "https://www.chess.com"]

[Event "Titled Tuesday Blitz March 22 Early 2022"]
[White "Shuvalova, Polina"]
[Black "Tomb, Maroun"]
[WhiteFideId "24171760"]
[BlackFideId "5300398"]
[WhiteElo "2355"]
[BlackElo "2494"]
[Result "1-0"]
[Round "04"]
[TimeControl "180+1"]
[Date "2022.03.22"]
[WhiteClock "0:00:08"]
[BlackClock "0:00:11"]

1. d4 {[%clk 0:03:00]}  d6 {[%clk 0:03:00]} 2. e4 {[%clk 0:03:00]}  Nf6 {[%clk 0:03:00]} 3. Nc3 {[%clk 0:03:01]}  e5 {[%clk 0:03:01]} 4. Nf3 {[%clk 0:02:58]}  Nbd7 {[%clk 0:03:00]} 5. h3 {[%clk 0:02:57]}  Be7 {[%clk 0:02:53]} 6. g4 {[%clk 0:02:56]}  c6 {[%clk 0:02:52]} 7. Rg1 {[%clk 0:02:52]}  g6 {[%clk 0:02:51]} 8. Be3 {[%clk 0:02:51]}  b5 {[%clk 0:02:50]} 9. a3 {[%clk 0:02:49]}  Bb7 {[%clk 0:02:50]} 10. Qd2 {[%clk 0:02:45]}  a5 {[%clk 0:02:50]} 11. g5 {[%clk 0:02:42]}  b4 {[%clk 0:02:34]} 12. gxf6 {[%clk 0:02:28]}  bxc3 {[%clk 0:02:33]} 13. Qxc3 {[%clk 0:02:27]}  Bxf6 {[%clk 0:02:29]} 14. O-O-O {[%clk 0:02:26]}  Qe7 {[%clk 0:02:16]} 15. dxe5 {[%clk 0:02:12]}  Nxe5 {[%clk 0:02:11]} 16. Bd4 {[%clk 0:02:02]}  O-O {[%clk 0:02:07]} 17. Nxe5 {[%clk 0:02:00]}  Bxe5 {[%clk 0:02:05]} 18. Bxe5 {[%clk 0:01:46]}  dxe5 {[%clk 0:02:06]} 19. Bc4 {[%clk 0:01:30]}  a4 {[%clk 0:01:07]} 20. Rg3 {[%clk 0:01:26]}  Rad8 {[%clk 0:01:03]} 21. Rgd3 {[%clk 0:01:11]}  Rxd3 {[%clk 0:00:58]} 22. Qxd3 {[%clk 0:01:11]}  Bc8 {[%clk 0:00:52]} 23. Kb1 {[%clk 0:01:03]}  Be6 {[%clk 0:00:52]} 24. Bxe6 {[%clk 0:01:00]}  Qxe6 {[%clk 0:00:53]} 25. h4 {[%clk 0:00:59]}  h5 {[%clk 0:00:52]} 26. f3 {[%clk 0:00:48]}  Kg7 {[%clk 0:00:44]} 27. Qc3 {[%clk 0:00:47]}  Rb8 {[%clk 0:00:41]} 28. Qa5 {[%clk 0:00:42]}  Rb5 {[%clk 0:00:37]} 29. Qxa4 {[%clk 0:00:40]}  Qh3 {[%clk 0:00:38]} 30. Rd3 {[%clk 0:00:25]}  Qxh4 {[%clk 0:00:38]} 31. Qc4 {[%clk 0:00:22]}  Qe1+ {[%clk 0:00:38]} 32. Ka2 {[%clk 0:00:22]}  h4 {[%clk 0:00:38]} 33. Qxc6 {[%clk 0:00:22]}  Ra5 {[%clk 0:00:30]} 34. Rd7 {[%clk 0:00:18]}  Qe2 {[%clk 0:00:11]} 35. Qc7 {[%clk 0:00:17]}  Ra6 {[%clk 0:00:12]} 36. Rxf7+ {[%clk 0:00:17]}  Kh6 {[%clk 0:00:13]} 37. Rh7+ {[%clk 0:00:17]}  Kg5 {[%clk 0:00:13]} 38. Qe7+ {[%clk 0:00:17]}  Kf4 {[%clk 0:00:14]} 39. Qxh4+ {[%clk 0:00:15]}  Ke3 {[%clk 0:00:14]} 40. Qg5+ {[%clk 0:00:14]}  Kd4 {[%clk 0:00:12]} 41. Rd7+ {[%clk 0:00:13]}  Kc4 {[%clk 0:00:11]} 42. Rc7+ {[%clk 0:00:11]}  Kd4 {[%clk 0:00:11]} 43. Qd8+ {[%clk 0:00:10]}  Ke3 {[%clk 0:00:11]} 44. Rc3+ {[%clk 0:00:10]}  Kf2 {[%clk 0:00:12]} 45. Qh4+ {[%clk 0:00:10]}  Kf1 {[%clk 0:00:11]} 46. Qh1+ {[%clk 0:00:10]}  Kf2 {[%clk 0:00:12]} 47. Qh2+ {[%clk 0:00:10]}  Ke1 {[%clk 0:00:13]} 48. Qg1+ {[%clk 0:00:09]}  Qf1 {[%clk 0:00:11]} 49. Re3+ {[%clk 0:00:08]} 1-0


[Site "https://www.chess.com"]

[Event "Titled Tuesday Blitz March 22 Early 2022"]
[White "Suarez Uriel, Adrian"]
[Black "Heinemann, Josefine"]
[WhiteFideId "22230874"]
[BlackFideId "12900460"]
[WhiteElo "2316"]
[BlackElo "2300"]
[Result "1-0"]
[Round "04"]
[TimeControl "180+1"]
[Date "2022.03.22"]
[WhiteClock "0:00:50"]
[BlackClock "0:00:11"]

1. d4 {[%clk 0:03:00]}  Nf6 {[%clk 0:02:57]} 2. c4 {[%clk 0:03:00]}  g6 {[%clk 0:02:52]} 3. Nc3 {[%clk 0:03:00]}  d5 {[%clk 0:02:52]} 4. cxd5 {[%clk 0:02:47]}  Nxd5 {[%clk 0:02:53]} 5. Bd2 {[%clk 0:02:45]}  Nb6 {[%clk 0:02:52]} 6. e3 {[%clk 0:02:43]}  Bg7 {[%clk 0:02:50]} 7. f4 {[%clk 0:02:42]}  O-O {[%clk 0:02:48]} 8. Nf3 {[%clk 0:02:42]}  c5 {[%clk 0:02:48]} 9. dxc5 {[%clk 0:02:40]}  N6d7 {[%clk 0:02:48]} 10. Ne4 {[%clk 0:02:36]}  Na6 {[%clk 0:02:44]} 11. b4 {[%clk 0:02:33]}  Bxa1 {[%clk 0:02:31]} 12. Qxa1 {[%clk 0:02:32]}  Nf6 {[%clk 0:02:30]} 13. Neg5 {[%clk 0:02:20]}  b6 {[%clk 0:02:18]} 14. c6 {[%clk 0:02:15]}  Qd6 {[%clk 0:02:12]} 15. b5 {[%clk 0:01:44]}  Nc5 {[%clk 0:02:11]} 16. Bc4 {[%clk 0:01:42]}  Nd3+ {[%clk 0:02:06]} 17. Ke2 {[%clk 0:01:39]}  Nc5 {[%clk 0:02:02]} 18. Rd1 {[%clk 0:01:29]}  Bf5 {[%clk 0:01:56]} 19. Bc3 {[%clk 0:01:24]}  Qc7 {[%clk 0:01:56]} 20. Ne5 {[%clk 0:01:16]}  Rad8 {[%clk 0:01:41]} 21. Rxd8 {[%clk 0:01:14]}  Qxd8 {[%clk 0:01:39]} 22. Ngxf7 {[%clk 0:01:13]}  Rxf7 {[%clk 0:01:33]} 23. Bxf7+ {[%clk 0:01:13]}  Kg7 {[%clk 0:01:32]} 24. Bc4 {[%clk 0:01:14]}  Nce4 {[%clk 0:01:21]} 25. Bd4 {[%clk 0:01:12]}  Qd6 {[%clk 0:01:14]} 26. Qb2 {[%clk 0:01:10]}  h5 {[%clk 0:01:09]} 27. h3 {[%clk 0:01:09]}  h4 {[%clk 0:01:08]} 28. Nf3 {[%clk 0:00:58]}  Be6 {[%clk 0:01:06]} 29. Bxe6 {[%clk 0:00:57]}  Qxe6 {[%clk 0:01:06]} 30. Qb3 {[%clk 0:00:55]}  Qd6 {[%clk 0:00:59]} 31. Ng5 {[%clk 0:00:52]}  e6 {[%clk 0:00:11]} 32. Nxe4 {[%clk 0:00:50]} 1-0


[Site "https://www.chess.com"]